Cogmind - Beta 13 @@@ ROGUE MODE // 2024.04.25 @ 14:25:20 Player: Beagleofevil Result: Self-destructed Performance ------------- Evolutions (1) 500 Regions Visited (2) 400 Robots Destroyed (26) 130 Value Destroyed (515) 515 Prototype IDs (2) 40 Alien Tech Used (0) 0 Bonus (18) 18 TOTAL SCORE: 1603 Bonus ------- High Alert Combat Kills 18 Cogmind --------- Core Integrity 330/400 Matter 300/300 Energy 250/250 System Corruption 0% Temperature Cool (0) Movement Treading (160) Location -9/Materials Parts ------- > --- POWER (1) -------- Ion Engine > --- PROPULSION (2) --- Light Treads Light Treads > --- UTILITY (4) ------ Large Storage Unit Advanced Targeting Computer Advanced Targeting Computer Light Armor Plating > --- WEAPON (2) ------- Light EM Pulse Cannon Axe > --- INVENTORY (15) --- Improved Flight Unit Improved Flight Unit Improved Flight Unit Small Storage Unit Advanced Targeting Computer Power Shielding Light Armor Plating High-powered Tractor Beam EM Pulse Gun Medium Laser Rocket Launcher Mining Laser Plasma Cutter Katana Peak State ------------ > --- POWER ------------ Ion Engine > --- PROPULSION ------- Light Treads Light Treads > --- UTILITY ---------- Large Storage Unit Advanced Targeting Computer Advanced Targeting Computer Advanced Targeting Computer > --- WEAPON ----------- Light EM Pulse Cannon Axe > --- INVENTORY -------- Ion Engine Light Treads Small Storage Unit Advanced Targeting Computer Power Shielding Light Armor Plating High-powered Tractor Beam EM Pulse Gun Medium Laser Light EM Pulse Cannon Mining Laser Plasma Cutter Axe [Rating: 20] Favorites ----------- Power Ion Engine Engine Ion Engine Propulsion Light Treads Treads Light Treads Utility Large Storage Unit Device Seismic Detector Storage Large Storage Unit Processor Advanced Targeting Computer Protection Light Armor Plating Weapon Light EM Pulse Cannon Energy Gun EM Pulse Gun Energy Cannon Light EM Pulse Cannon Ballistic Gun Light Assault Rifle Launcher Rocket Launcher Special Weapon Mining Laser Impact Weapon Hammer Slashing Weapon Axe Build | -11 -10 -9 ------- Run | Yrd Mat Mat Slots Evolved 2 | . . 2 Power . | . . . Propulsion . | . . . Utility 2 | . . 2 Weapon . | . . . Parts Attached 22 | 7 5 10 Power 2 | 1 . 1 Engine 2 | 1 . 1 Core . | . . . Reactor . | . . . Propulsion 3 | 2 . 1 Treads 3 | 2 . 1 Leg . | . . . Wheel . | . . . Hover . | . . . Flight . | . . . Utility 7 | 2 1 4 Device 1 | 1 . . Storage 2 | 1 1 . Processor 3 | . . 3 Hackware . | . . . Protection 1 | . . 1 Artifact . | . . . Weapon 10 | 2 4 4 Energy Gun 1 | 1 . . Energy Cannon 2 | . 1 1 Ballistic Gun 2 | 1 1 . Ballistic Cannon . | . . . Launcher 1 | . . 1 Special Weapon 1 | . 1 . Impact Weapon 1 | . 1 . Slashing Weapon 2 | . . 2 Piercing Weapon . | . . . Special Melee Weapon . | . . . Unidentified Prototypes . | . . . Parts Lost 4 | . 1 3 Power 1 | . . 1 Propulsion 1 | . . 1 Utility 1 | . 1 . Weapon 1 | . . 1 Highest Loss Streak 2 | . 1 2 To Critical Strikes . | . . . Average Slot Usage (%) 97 | . 99 93 Engine 12 | . 14 9 Treads 25 | . 28 21 Device 8 | . 13 . Storage 12 | . 14 11 Processor 8 | . . 24 Protection 2 | . . 5 Energy Gun 1 | . 2 . Energy Cannon 11 | . 11 13 Launcher 1 | . . 2 Impact Weapon 7 | . 11 . Slashing Weapon 1 | . . 4 Naked Turns . | . . . Heaviest Build 36 | 14 32 36 Greatest Support 40 | 40 40 40 Greatest Overweight (x) 1 | 1 . 1 Average Overweight (x) . | . . . Largest Inventory Capacity 15 | 8 15 15 Average Capacity 14 | 7 14 15 Most Carried 15 | 4 10 15 Average Carried 9 | 2 8 13 Final Capacity 15 | 8 15 15 Final Carried 14 | 3 10 14 Class Distribution -------------------- 100% | Mutant Dominant Class ---------------- Mutant | -10/Materials Mutant | -9/Materials Resources | -11 -10 -9 ----------- Run | Yrd Mat Mat Matter Collected 459 | 143 188 128 Remotely . | . . . Salvage Created 768 | 94 130 544 Parts 46 | 5 4 37 Haulers Intercepted . | . . . Recyclers Shooed 1 | . . 1 Parts Field Recycled . | . . . Retrieved Matter . | . . . Parts Self-Destructed . | . . . Prevented . | . . . Kills | -11 -10 -9 ------- Run | Yrd Mat Mat Combat Hostiles Destroyed 15 | . 4 11 Melee 9 | . 3 6 Cannons 4 | . 1 3 AOE 2 | . . 2 Classes Destroyed 9 | 2 5 2 Worker 1 | . 1 . Tunneler 1 | 1 . . Recycler 4 | 1 . 3 Operator 2 | . 1 1 Watcher 3 | . 1 2 Swarmer 8 | . 3 5 Grunt 4 | . 1 3 Duelist 1 | . . 1 Sentry 2 | . . 2 Best Kill Streak 8 | 1 2 8 Combat Bots Only 4 | . 2 4 Max Kills in Single Turn 1 | 1 1 1 Gunslinging . | . . . Exploded 1 | . . 1 Melee 1 | . 1 1 Uniques/NPCs Destroyed . | . . . Combat | -11 -10 -9 -------- Run | Yrd Mat Mat Hostile Shots Fired 79 | . 27 52 Missed 28 | . 8 20 Damage Taken 609 | . 159 450 Core 95 | . 25 70 Absorbed by Shields . | . . . Core Remaining (%) 95 | 100 90 . Volleys Fired 44 | 11 8 25 Largest 2 | 2 1 2 Hottest 112 | 60 100 112 Shots Fired 63 | 22 8 33 Gun 22 | 22 . . Cannon 34 | . 4 30 Launcher 3 | . . 3 Special 4 | . 4 . Kinetic 11 | 11 . . Thermal 4 | . 4 . Explosive 3 | . . 3 Electromagnetic 45 | 11 4 30 Robot Hit Streak 15 | 10 6 15 Robot Miss Streak 2 | 2 . 1 Penetration Max . | . . . Secondary Targets . | . . . Shots Hit Robots 69 | 16 14 39 Core Hits 26 | 5 3 18 Critical Kills 1 | . 1 . Critical Parts Destroyed 1 | . 1 . Critical Strikes 3 | . 2 1 Smash 2 | . 2 . Sever 1 | . . 1 Melee Attacks 45 | . 32 13 Impact 32 | . 32 . Slashing 13 | . . 13 Piercing . | . . . Sneak Attacks 4 | . 1 3 Combat Hostiles . | . . . Follow-up Attacks . | . . . Damage Inflicted 1921 | 167 403 1351 Guns 167 | 167 . . Cannons 659 | . 91 568 Explosions 322 | . 31 291 Melee 771 | . 281 490 Ramming 2 | . . 2 Kinetic 64 | 64 . . Thermal 210 | . 31 179 Explosive 112 | . . 112 Electromagnetic 762 | 103 91 568 Impact 281 | . 281 . Slashing 490 | . . 490 Piercing . | . . . Highest Corruption . | . . . Average Corruption . | . . . Corruption Purged . | . . . Corruption Blocked . | . . . Overload Shots . | . . . Overflow Damage 189 | . 62 127 Projectiles 8 | . . 8 Explosions 18 | . . 18 Melee 163 | . 62 101 Knockbacks . | . . . Impact . | . . . Kinetic . | . . . Secondary . | . . . Self-Inflicted Damage . | . . . Shots . | . . . Rammed 2 | . . 2 Targets Rammed 2 | . . 2 Kicked . | . . . Crushed . | . . . Highest Temperature 105 | 40 80 105 Average Temperature 31 | 16 35 35 Received Heat Transfer 93 | . 6 87 Siege Activations . | . . . Robots Corrupted . | . . . Combat Hostiles . | . . . Parts Fried 7 | . 4 3 Impact Corruptions 5 | . 5 . Robots Melted . | . . . Combat Hostiles . | . . . Parts Melted . | . . . Heat Transferred 150 | . 50 100 Parts Sabotaged . | . . . Parts Stolen . | . . . Parts Stripped . | . . . Power Chain Reactions 2 | . 1 1 Alert | -11 -10 -9 ------- Run | Yrd Mat Mat Peak Influence 458 | 10 177 458 Initial 74 | . 6 74 Average 103 | 2 47 228 Maximum Alert Level 2 | . . 2 Low Security (%) 82 | 100 100 48 Level 1 14 | . . 42 Level 2 2 | . . 8 Level 3 . | . . . Level 4 . | . . . Level 5 . | . . . High Security . | . . . Max Security . | . . . Squads Dispatched 1 | . . 1 Investigation . | . . . Extermination . | . . . Reinforcement 1 | . . 1 Assault . | . . . Garrison . | . . . Intercept . | . . . Searches Triggered . | . . . Construction Impeded . | . . . Haulers Reinforced . | . . . Active Scanning Responses . | . . . Cargo Convoy Interrupts . | . . . Stealth | -11 -10 -9 --------- Run | Yrd Mat Mat Distress Signals 3 | . 1 2 Communications Jammed . | . . . Distress Signals . | . . . Times Spotted 29 | . 10 19 Peak Tracking Total 5 | . 3 5 Tactical Retreats 1 | . 1 . Traps | -11 -10 -9 ------- Run | Yrd Mat Mat Traps Triggered . | . . . Indirectly . | . . . Trap Hack Attempts . | . . . Triggered . | . . . Disarmed . | . . . Reprogrammed . | . . . Reused . | . . . Traps Extracted . | . . . Installed . | . . . Triggered . | . . . Machines | -11 -10 -9 ---------- Run | Yrd Mat Mat Machines Disabled 5 | . 2 3 Max in Single Turn 2 | . 2 2 Machines Repaired . | . . . Machines Dismantled . | . . . Machines Sabotaged . | . . . Overloaded Fab Kills . | . . . Hacking | -11 -10 -9 --------- Run | Yrd Mat Mat Machines Accessed 8 | . 4 4 Terminals 8 | . 4 4 Fabricators . | . . . Repair Stations . | . . . Recycling Units . | . . . Scanalyzers . | . . . Garrison Access . | . . . Total Hacks 22 | . 12 10 Successful 11 | . 8 3 Failed 11 | . 4 7 Catastrophic . | . . . Database Lockouts . | . . . Manual 11 | . 5 6 Terminals 22 | . 12 10 Fabricators . | . . . Repair Stations . | . . . Recycling Units . | . . . Scanalyzers . | . . . Garrison Access . | . . . Terminal Hacks 7 | . 5 2 Robot Analysis 1 | . 1 . Prototype ID Bank 1 | . 1 . Level Access Points 1 | . 1 . Branch Access Points 1 | . . 1 Unreport Threat 1 | . . 1 Hauler Manifests 1 | . 1 . Zone Layout 1 | . 1 . Fabricator Hacks . | . . . Repair Station Hacks . | . . . Recycling Unit Hacks . | . . . Scanalyzer . | . . . Garrison Access Hacks . | . . . Unauthorized Hacks 4 | . 3 1 Terminals 4 | . 3 1 Track 1 | . 1 . Botnet 3 | . 2 1 Fabricators . | . . . Repair Stations . | . . . Recycling Units . | . . . Scanalyzers . | . . . Garrison Access . | . . . Data Cores Recovered 1 | . 1 . Used . | . . . Hacking Detections 8 | . 4 4 Full Trace Events 1 | . . 1 Feedback Events . | . . . Feedback Blocked . | . . . Robot Schematics Acquired . | . . . Robots Built . | . . . Authchips . | . . . Time . | . . . Total Robot Build Rating . | . . . Part Schematics Acquired . | . . . Parts Built . | . . . Authchips . | . . . Time . | . . . Total Part Build Rating . | . . . Parts Repaired . | . . . Time . | . . . Parts Recycled . | . . . Recycled Matter . | . . . Retrieved Matter . | . . . Retrieved Components . | . . . Parts Scanalyzed . | . . . Part Schematics Acquired . | . . . Parts Damaged . | . . . Bothacking | -11 -10 -9 ------------ Run | Yrd Mat Mat Used RIF Installer . | . . . Robots Hacked . | . . . Non-combat . | . . . Combat . | . . . Robot Hacks Applied . | . . . Relay Couplers Released . | . . . Fabnet Peak Effective % . | . . . Robots Rewired . | . . . Allies Hacked . | . . . Hacks Repelled . | . . . Allies | -11 -10 -9 -------- Run | Yrd Mat Mat Total Allies . | . . . Largest Group . | . . . Highest-Rated Group . | . . . Highest-Rated Ally . | . . . Total Orders . | . . . Ally Attacks . | . . . Total Damage . | . . . Kills . | . . . Allies Corrupted . | . . . Allies Melted . | . . . Intel | -11 -10 -9 ------- Run | Yrd Mat Mat Robot Analysis Total 1 | . 1 . Derelict Logs Recovered . | . . . Drone Launches . | . . . Drone Recoveries . | . . . Exploration | -11 -10 -9 ------------- Run | Yrd Mat Mat Turns Passed 1338 | 130 762 446 Spaces Moved 628 | 56 384 188 Core 5 | 5 . . Treads 623 | 51 384 188 Legs . | . . . Wheels . | . . . Hover . | . . . Flight . | . . . Fastest Speed 50 | 50 160 160 Average Speed 160 | 153 160 163 Slowest Speed 240 | 160 160 240 Overloaded Moves . | . . . Propulsion Burnouts . | . . . Robots Hopped . | . . . Cave-ins Triggered . | . . . Exploration Rate (%) 28 | 5 52 27 Regions Visited 2 Branch Regions . Pre-discovered Areas . | . . . Known Exits Taken 1 | . 1 . Unknown Exits Taken 1 | 1 . . Scrap Searched . | . . . Spaces Dug 16 | . 16 . Terrain Destroyed 50 | . 16 34 Melee 12 | . 12 . Projectile 4 | . 4 . AOE 34 | . . 34 Terrain Rammed . | . . . Walls Destroyed . | . . . Machines Disabled . | . . . Actions | -11 -10 -9 --------- Run | Yrd Mat Mat Total 804 | 78 458 268 Wait 39 | . 22 17 Move 626 | 55 383 188 Hop . | . . . Pick Up 21 | 5 7 9 Fast Attach 10 | 5 . 5 Attach 5 | 2 . 3 Detach . | . . . Swap 7 | . 5 2 Drop 5 | . 1 4 Fire 44 | 11 8 25 Melee 45 | . 32 13 Ram . | . . . Kick . | . . . Crush 2 | . . 2 Escape Stasis . | . . . Rewire . | . . . Trap . | . . . Miscellaneous . | . . . Route ------- -11/Scrapyard -10/Materials (discovered 3 exits: *Mat x3) -9/Materials (discovered 2 exits: *Min x2) History --------- Turn | Location | Event 10 | -11/Scrapyard | Discovered new exit (range 15) 131 | -11/Scrapyard | Entered Materials 306 | -10/Materials | Build established: Mutant 775 | -10/Materials | Identified exit to Materials 893 | -10/Materials | Entered another Materials area 893 | -9/Materials | Evolved 2 slots: Utility x2 1047 | -9/Materials | Discovered new exit (range 11) 1277 | -9/Materials | Identified exit to Mines 1339 | -9/Materials | Self-destructed Last Messages --------------- 01279_ K-01 Serf collects debris. 01280_ Connecting with Terminal... 01282_ K-01 Serf collects debris. 01285_ Acquired 10 matter. 01288_ Sneak attack on R-06 Scavenger. 01288_ Destroyed Com. Wheel. 01288_ R-06 Scavenger destroyed. 01289_ K-01 Serf collects debris. 01292_ Destroyed Hover Unit. 01292_ O-16 Technician: "IFF HANDSHAKE FAILED. SECURING TERMINAL." 01293_ K-01 Serf collects debris. 01306_ ALERT: Hostiles spotted, dispatching reinforcements to Terminal M005. 01309_ K-01 Serf collects debris. 01314_ R-06 Scavenger collects Sml. Storage Unit. 01317_ K-01 Serf collects debris. 01318_ R-06 Scavenger collects Tractor Beam. 01334_ Connecting with Terminal... Map ----- +----------------------------------------------------+ | | | | | | | | | | | | | | | | | | | | | | | | | | | ?????????????????????????????????????????? | | ?????????????????????????????????????????? | | ?????????????????????????????????????????? | | ?????????????????????????????????????????? | | ?????????????????????????????????????????? | | ?????????????????????????????????????????? | | ?????????????????????????????????????????? | | ????????????????????????????????????###### | | ????????????????????????????????????# | | ????????????????????????????????????# """ | | ????????????????#######?????????????# """ | | ????????????????# T #?????????????# """ | | ????????????????#@ #?????????????# | | ???????????>????# #?????????????# | | ????????????????# """ #???????####### "T"! | | ????????????????# """ #???????#""""## """[ | | ????????????????# """ #???????#""R"## ==%% | | ????????????????# #########"" "#####+# | | ?????????# #######+## !!! %%% | | ??????#! !!! !!* | | ??????! !!! | | ??????! | | ??????? ####+####### | | ??????????????????????# """ """ """ | | ??????????????????????# """ """ """ | | ??????????????????????# """ """ """ | | ????????????????????? | | ????????????????????#### | | ???????????????????????# """ """ """ | | ???????????????????????" """ """ """ | | ???????????????????????Y """ """ """ | | ???????????????????????" ? | | ???????????????????????# ? ? | | ???????????????????????# """ ""? """ | | ???????????????????????? "?? "?? """ | | ???????????????????????? "?? ???????" | | ???????????????????????? ???????????? | +----------------------------------------------------+ Best States ------------- Heat Dissipation 28 Energy Generation 10 Energy Capacity 250 Matter Stores 300 Matter Capacity 300 Sight Range 16 Terrain Scan Density 10 Armor Coverage 150 Evasion (%) 40 Targeting Accuracy 24 Recoil Reduction 2 Item Schematics ----------------- None Robot Schematics ------------------ None Fabricated ------------ Nothing Alien Tech Used ----------------- None Achievements -------------- None Challenges ------------ None Game ------ Seed ThermoelectricStasisExpander Manual? 0 Play Time 00:24:13 Cumulative 229.6 hours Start 2024.04.25 @ 14:01:09 End 2024.04.25 @ 14:25:20 Sessions 1 Manual Loads 0 Difficulty Rogue Special Mode None Game No. 81 Rogue 5 Adventurer 76 Explorer 0 Win Type - Total 4 Types 3/0/0/0/0/0/0/1/0 Lore% 45 Gallery% 44 Achievement% 45 Wizard Run 0 Options --------- Layout 1 ASCII 0 Keyboard 0 Movement Arrows Keybinds 0 Fullscreen 1 Font 24/Smallcaps Map View 50x35 Zoom Use 0% Tactical HUD 1 Map Filters NONE Filters NONE Steam 1 RUN: af32d325-f40c-47f3-a722-2f912a89a914